Cogmind - Beta 17.1 @@@ ROGUE MODE // 2026.08.19 @ 12:37:25 Player: Infomantis Result: Destroyed by G-47 Trooper with Particle Gun Performance ------------- Evolutions (0) 0 Regions Visited (1) 200 Robots Destroyed (15) 75 Value Destroyed (250) 250 Prototype IDs (2) 40 Alien Tech Used (0) 0 Bonus (5000) 5000 TOTAL SCORE: 5565 Bonus ------- Prayed to X0-1V1 5000 Cogmind --------- Core Integrity 0/100 Matter 300/300 Energy 68/100 System Corruption 0% Temperature Hot (231) Movement Treading (160) Location -10/Materials Parts ------- > --- POWER (1) -------- (None) > --- PROPULSION (2) --- Light Treads Light Treads > --- UTILITY (2) ------ Large Storage Unit Self-contained Transmogrifier > --- WEAPON (2) ------- Medium Laser Advanced Beam Cannon > --- INVENTORY (15) --- Compact Wheel Medium Storage Unit Improved Terrain Scanner EM Pulse Gun EM Pulse Gun Spread Laser Spread Laser Spread Laser Advanced Beam Cannon Advanced Beam Cannon EMP Blaster Grenade Launcher Mining Laser Peak State ------------ > --- POWER ------------ (None) > --- PROPULSION ------- Light Treads Light Treads > --- UTILITY ---------- Large Storage Unit Self-contained Transmogrifier > --- WEAPON ----------- Medium Laser Advanced Beam Cannon > --- INVENTORY -------- Compact Wheel Medium Storage Unit Improved Terrain Scanner EM Pulse Gun EM Pulse Gun Spread Laser Spread Laser Spread Laser Advanced Beam Cannon Advanced Beam Cannon EMP Blaster Grenade Launcher Mining Laser [Rating: 18] Favorites ----------- Power None Propulsion Light Treads Treads Light Treads Utility Heat Sink Device Heat Sink Storage Small Storage Unit Weapon Medium Laser Energy Gun Medium Laser Energy Cannon Advanced Beam Cannon Ballistic Cannon Light Cannon Build | -11 -10 ------- Run | Yrd Mat Slots Evolved . | . . Power . | . . Propulsion . | . . Utility . | . . Weapon . | . . Parts Attached 12 | 5 7 Power . | . . Engine . | . . Core . | . . Reactor . | . . Propulsion 3 | 2 1 Treads 3 | 2 1 Leg . | . . Wheel . | . . Hover . | . . Flight . | . . Utility 5 | 1 4 Device 2 | . 2 Storage 3 | 1 2 Processor . | . . Hackware . | . . Protection . | . . Artifact . | . . Weapon 4 | 2 2 Energy Gun 2 | 2 . Energy Cannon 1 | . 1 Ballistic Gun . | . . Ballistic Cannon 1 | . 1 Launcher . | . . Special Weapon . | . . Impact Weapon . | . . Slashing Weapon . | . . Piercing Weapon . | . . Special Melee Weapon . | . . Unidentified Prototypes 1 | . 1 Parts Lost 3 | . 3 Power . | . . Propulsion 1 | . 1 Utility 1 | . 1 Weapon 1 | . 1 Highest Loss Streak 2 | . 2 To Critical Strikes . | . . Average Backups 6 | 3 7 Power . | . . Propulsion 1 | . 1 Utility 1 | . 1 Weapon 4 | 2 4 Tool/Special . | . . Unused Backups 11 | . 11 Power . | . . Propulsion 1 | . 1 Utility 1 | . 1 Weapon 9 | . 9 Tool/Special . | . . Average Slot Usage (%) 74 | . 74 Treads 26 | . 26 Device 13 | . 13 Storage 14 | . 14 Energy Gun 14 | . 14 Energy Cannon 2 | . 2 Ballistic Cannon 3 | . 3 Peak Build Rating 18 | 5 18 Average Rating 5 | 3 6 On Entrance 2 | . 4 Avg Prop Armor Cover (%) . | . . Naked Turns . | . . Heaviest Build 27 | 7 27 Greatest Support 40 | 40 40 Greatest Overweight (x) . | . . Average Overweight (x) . | . . Largest Inventory Capacity 15 | 8 15 Average Capacity 9 | 7 10 Most Carried 13 | 6 13 Average Carried 6 | 4 7 Final Capacity 15 | 8 15 Final Carried 13 | 6 13 Class Distribution -------------------- 100% | Mutant Dominant Class ---------------- Mutant | -10/Materials Resources | -11 -10 ----------- Run | Yrd Mat Matter Collected 361 | 250 111 Remotely . | . . Salvage Created 461 | 247 214 Parts 31 | 18 13 Haulers Intercepted 1 | . 1 Recyclers Shooed 2 | 2 . Parts Field Recycled . | . . Retrieved Matter . | . . Parts Self-Destructed . | . . Prevented . | . . Parts Restored . | . . Kills | -11 -10 ------- Run | Yrd Mat Combat Hostiles Destroyed 5 | . 5 Guns 1 | . 1 Cannons 4 | . 4 Classes Destroyed 6 | 3 3 Worker 1 | 1 . Tunneler 6 | 6 . Hauler 1 | . 1 Recycler 1 | 1 . Watcher 1 | . 1 Grunt 5 | . 5 Best Kill Streak 4 | 4 2 Combat Bots Only 2 | . 2 Max Kills in Single Turn 1 | 1 1 Gunslinging . | . . Exploded . | . . Melee . | . . Uniques/NPCs Destroyed . | . . Combat | -11 -10 -------- Run | Yrd Mat Hostile Shots Fired 23 | . 23 Missed 2 | . 2 Hits 21 | . 21 Projectile 21 | . 21 Critical Strikes 1 | . 1 Damage Taken 528 | . 528 Core 100 | . 100 Absorbed by Shields . | . . Core Remaining (%) 100 | 100 . Volleys Fired 65 | 40 25 Largest 2 | 1 2 Hottest 118 | 50 118 Shots Fired 88 | 40 48 Gun 65 | 40 25 Cannon 23 | . 23 Launcher . | . . Special . | . . Kinetic 16 | . 16 Thermal 72 | 40 32 Explosive . | . . Electromagnetic . | . . Robot Hit Streak 26 | 10 26 Robot Miss Streak 2 | 2 1 Penetration Max . | . . Secondary Targets . | . . Shots Hit Robots 67 | 28 39 Core Hits 19 | 9 10 Critical Kills . | . . Critical Parts Destroyed . | . . Critical Strikes 6 | 3 3 Burn 6 | 3 3 Melee Attacks . | . . Impact . | . . Slashing . | . . Piercing . | . . Sneak Attacks . | . . Combat Hostiles . | . . Follow-up Attacks . | . . Damage Inflicted 990 | 360 630 Guns 584 | 360 224 Cannons 401 | . 401 Explosions . | . . Melee . | . . Ramming 5 | . 5 Kinetic 278 | . 278 Thermal 707 | 360 347 Explosive . | . . Electromagnetic . | . . Impact . | . . Slashing . | . . Piercing . | . . Highest Corruption . | . . Average Corruption . | . . Corruption Purged . | . . Corruption Blocked . | . . Overload Shots . | . . Overflow Damage 17 | . 17 Projectiles 17 | . 17 Explosions . | . . Melee . | . . Knockbacks 6 | . 6 Impact . | . . Kinetic 4 | . 4 Secondary 2 | . 2 Self-Inflicted Damage . | . . Shots . | . . Rammed 2 | . 2 Targets Rammed 2 | . 2 Kicked . | . . Crushed . | . . Highest Temperature 222 | . 222 Average Temperature 70 | . 70 Received Heat Transfer 180 | . 180 Siege Activations . | . . Martial Activations . | . . Shielding Activations . | . . Robots Disrupted . | . . Combat Hostiles . | . . Robots Corrupted . | . . Combat Hostiles . | . . Parts Fried . | . . Impact Corruptions . | . . Robots Melted . | . . Combat Hostiles . | . . Parts Melted 2 | 2 . Heat Transferred 2405 | 1295 1110 Parts Sabotaged . | . . Parts Stolen . | . . Parts Stripped . | . . Power Chain Reactions . | . . Alert | -11 -10 ------- Run | Yrd Mat Maximum Alert Level . | . . Low Security (%) 100 | 100 100 Level 1 . | . . Level 2 . | . . Level 3 . | . . Level 4 . | . . Level 5 . | . . High Security . | . . Max Security . | . . Peak Influence 51 | 10 51 Initial . | . . Average 4 | 1 5 Influence Increases 181 | 40 141 Destroy 0b10 Robot/C 100 | . 100 Destroy 0b10 Robot/NC 50 | 40 10 Destroy Leader 24 | . 24 Successful Hack 5 | . 5 Destroy Structure 2 | . 2 Influence Decreases 161 | 40 121 Time Decay 143 | 40 103 Lost Part 18 | . 18 Squads Dispatched 2 | . 2 Investigation 1 | . 1 Extermination . | . . Reinforcement 1 | . 1 Assault . | . . Garrison . | . . Intercept . | . . Searches Triggered . | . . Construction Impeded . | . . Haulers Reinforced . | . . Active Scanning Responses . | . . Cargo Convoy Interrupts . | . . Stealth | -11 -10 --------- Run | Yrd Mat Distress Signals 1 | . 1 Communications Jammed . | . . Distress Signals . | . . Times Spotted 12 | . 12 Peak Tracking Total 3 | . 3 Tactical Retreats . | . . Traps | -11 -10 ------- Run | Yrd Mat Traps Triggered 2 | . 2 Indirectly . | . . Trap Hack Attempts . | . . Triggered . | . . Disarmed . | . . Reprogrammed . | . . Reused . | . . Traps Extracted . | . . Installed . | . . Triggered . | . . Machines | -11 -10 ---------- Run | Yrd Mat Machines Disabled . | . . Max in Single Turn . | . . Machines Repaired . | . . Machines Dismantled . | . . Machines Sabotaged . | . . Overloaded Fab Kills . | . . Hacking | -11 -10 --------- Run | Yrd Mat Machines Accessed 4 | . 4 Terminals 3 | . 3 Fabricators . | . . Repair Stations . | . . Recycling Units 1 | . 1 Scanalyzers . | . . Garrison Access . | . . Total Hacks 8 | . 8 Successful 2 | . 2 Failed 6 | . 6 Catastrophic . | . . Database Lockouts . | . . Manual 4 | . 4 Terminals 6 | . 6 Fabricators . | . . Repair Stations . | . . Recycling Units 2 | . 2 Scanalyzers . | . . Garrison Access . | . . Terminal Hacks 2 | . 2 Maintenance Status 1 | . 1 Zone Layout 1 | . 1 Fabricator Hacks . | . . Repair Station Hacks . | . . Recycling Unit Hacks . | . . Scanalyzer . | . . Garrison Access Hacks . | . . Unauthorized Hacks . | . . Terminals . | . . Fabricators . | . . Repair Stations . | . . Recycling Units . | . . Scanalyzers . | . . Garrison Access . | . . Data Cores Recovered . | . . Used . | . . Hacking Detections 3 | . 3 Full Trace Events 1 | . 1 Feedback Events . | . . Feedback Blocked . | . . Robot Schematics Acquired . | . . Robots Built . | . . Authchips . | . . Time . | . . Total Robot Build Rating . | . . Part Schematics Acquired . | . . Parts Built . | . . Authchips . | . . Time . | . . Total Part Build Rating . | . . Part Studies Acquired . | . . Parts Repaired . | . . Time . | . . Parts Recycled . | . . Recycled Matter . | . . Retrieved Matter . | . . Retrieved Components . | . . Parts Scanalyzed . | . . Part Schematics Acquired . | . . Parts Damaged . | . . Bothacking | -11 -10 ------------ Run | Yrd Mat Used RIF Installer . | . . Robots Hacked . | . . Non-combat . | . . Combat . | . . Robot Hacks Applied . | . . Relay Couplers Released . | . . Fabnet Peak Effective % . | . . Robots Rewired . | . . Allies Hacked . | . . Hacks Repelled . | . . Allies | -11 -10 -------- Run | Yrd Mat Total Allies . | . . Largest Group . | . . Highest-Rated Group . | . . Highest-Rated Ally . | . . Total Orders . | . . Ally Attacks . | . . Total Damage . | . . Kills . | . . Allies Corrupted . | . . Allies Melted . | . . X0-1V1 Amusement Gains 20 | . 20 Average Entertainment 39 | . 39 Intel | -11 -10 ------- Run | Yrd Mat Active Infowar (turns) 144 | . 144 Seismic 144 | . 144 Robot Analysis Total . | . . Derelict Logs Recovered . | . . Drone Launches . | . . Drone Recoveries . | . . Exploration | -11 -10 ------------- Run | Yrd Mat Turns Passed 1032 | 277 755 Spaces Moved 511 | 115 396 Core 3 | 3 . Treads 508 | 112 396 Legs . | . . Wheels . | . . Hover . | . . Flight . | . . Fastest Speed 50 | 50 160 Average Speed 159 | 157 160 Slowest Speed 160 | 160 160 Overloaded Moves . | . . Propulsion Burnouts . | . . Robots Hopped . | . . Potential Cave-ins . | . . Cave-ins Triggered . | . . Exploration Rate (%) 35 | 5 66 Regions Visited 1 Branch Regions . Pre-discovered Areas . | . . Known Exits Taken . | . . Unknown Exits Taken 1 | 1 . Scrap Searched . | . . Spaces Dug . | . . Terrain Destroyed . | . . Melee . | . . Projectile . | . . AOE . | . . Terrain Rammed . | . . Walls Destroyed . | . . Machines Disabled . | . . Actions | -11 -10 --------- Run | Yrd Mat Total 637 | 170 467 Wait 30 | 4 26 Move 510 | 114 396 Hop . | . . Pick Up 16 | 6 10 Fast Attach 6 | 4 2 Attach 5 | 1 4 Detach 1 | 1 . Swap 1 | . 1 Drop 1 | . 1 Fire 65 | 40 25 Melee . | . . Ram . | . . Kick . | . . Crush 2 | . 2 Escape Stasis . | . . Rewire . | . . Trap . | . . Miscellaneous . | . . Route ------- -11/Scrapyard -10/Materials (discovered 4 exits: [*Mat x2] / [*Min] / [*Sub]) History --------- Turn | Location | Event 101 | -11/Scrapyard | Discovered new exit (range 15) 278 | -11/Scrapyard | Entered Materials 318 | -10/Materials | Build established: Mutant 382 | -10/Materials | Discovered new exit (range 14) 591 | -10/Materials | Discovered new exit (range 15) 937 | -10/Materials | Discovered new exit (range 8) 992 | -10/Materials | Made a sacrifice at D.C.S.S. Altar Unit 992 | -10/Materials | Forcibly received Sfc. Transmogifier from X0-1V1 993 | -10/Materials | Core integrity fell below 50% 993 | -10/Materials | Core integrity fell below 20% 1011 | -10/Materials | Discovered new exit (range 16) 1033 | -10/Materials | Destroyed by G-47 Trooper with Particle Gun Last Messages --------------- 00966_ U-05 Engineer lays Concrete. 00967_ G-34 Mercenary suffers critical hit (Burn). 00969_ T-07 Excavator is excavating. 00971_ U-05 Engineer lays Concrete. 00971_ U-05 Engineer builds a Wall. 00973_ T-07 Excavator is excavating. 00973_ G-34 Mercenary destroyed. 00975_ U-05 Engineer lays Concrete. 00976_ U-05 Engineer builds a Wall. 00976_ Acquired 10 matter. 00984_ U-05 Engineer builds a Door. 00992_ Connecting with D.C.S.S. Altar Unit... >>sacrifice An interesting new toy? 01008_ W-16 Scout sends out distress signal. 01011_ EXIT=FOUND 01021_ G-34 Mercenary suffers critical hit (Burn). 01027_ G-34 Mercenary destroyed. 01031_ Critical hit (Burn: +37). 01033_ X0-1V1 giggles madly! Map ----- +----------------------------------------------------+ | ???????????????# "#?????????????????????????? | | ???????????????# ""#?????????????????????????? | | ???????????????# !!#?????????????????????????? | | ???????????????# < ""#?????????????????????????? | | ???????????????# !!#?????????????????????????? | | ???????????????# ""#?????????????????????????? | | ##?????????????# "#?????????????????????????? | | ???############# ####?????#???????????????????? | | ???? # ######## ##??????????????????? | | ???????"" """ + #??????????????????? | | #??????"" """ # +??????????????????? | | #???????" """ # #??????????????????? | | #??????? ?# """ #??????????????????? | | ??????? ?#[[[ """ ?#??????????????????? | | ?????? ??#[[ """ #??????????????????? | | ??????#######??#[[ #??????????????????? | | ##??????????????# #??????????????????? | | ????????????????# ! #??????????????????? | | ????????????????# ##### #??????????????????? | | ????????????????# # #? #??????????????????? | | ????????????????# # #? #??????????????????? | | ????????????????# # #? #??????????????????? | | ?????????######?# #]] #? #??????????????????? | | ????????##! !!### #]] # #??????????????????? | | ????????#! !## # # #??????????????????? | | ??#####?# ## # !@# #??????????????????? | | ??#]] ### ## ##g## ########+??????????? | | ??# ] % ???????? | | ??# < ???????? | | ??# [=% ???????? | | ??# #+##+######+##T########/##########?????????? | | ??#] # ???#% #?????? ?????????????????? | | ??##### """ ""??# #??????? ???????????????? | | ??????# """ """?# #???????? #??????????????? | | ??????# """ """ # #????????? #??????????????? | | ??????# ?# !!#??????????#??????????????? | | ??????? ?##<###X#?????????????????????????? | | ??????? ??###??##?????????????????????????? | | ??????? ! ! ??????????????????????????????????? | | ???????##??####??????????????????????????????????? | | ?????????????????????????????????????????????????? | | | | | | | | | | | | | | | | | | | +----------------------------------------------------+ Best States ------------- Heat Dissipation 35 Energy Generation 5 Energy Capacity 100 Matter Stores 300 Matter Capacity 300 Sight Range 16 Terrain Scan Density 10 Evasion (%) 40 Recoil Reduction 2 Item Schematics ----------------- None Robot Schematics ------------------ None Fabricated ------------ Nothing Repaired ---------- Nothing Studied --------- None Alien Tech Used ----------------- None Achievements -------------- None Challenges ------------ None Game ------ Seed NeutrinoQuantumTreads Manual? 0 Play Time 00:07:45 Cumulative 687.5 hours Start 2026.08.19 @ 12:32:53 End 2026.08.19 @ 12:37:25 Sessions 1 Manual Loads 0 Difficulty Rogue Special Mode None Game No. 383 Rogue 358 Adventurer 7 Explorer 18 Win Type - Total 67 Types 43/3/9/2/2/1/2/3/0/2 Lore% 95 Gallery% 88 Achievement% 75 Wizard Run 0 Options --------- Layout 0 ASCII 0 Keyboard 0 Movement Numpad Keybinds 0 Fullscreen 1 Font 18/SmallcapsGlow Map View 76x50 Zoom Use 0% Tactical HUD 1 Map Filters NONE Filters NONE Steam 1 RUN: d9557bc4-735a-4242-844a-797fb17ba44b